{"text_format":"1","workbook":"xlsx","n_sheets":6,"sheets":["新規申請書フォーム","表示提出フォーム（推奨）","申請方法","申請の流れ","エラー一覧","Sheet1"],"not_rendered":{"charts":0,"images":5,"macros":1,"external_links":0,"defined_names":4,"comments":1,"pivot_tables":0},"unopened":[],"bounds":{"document_bytes":16777216,"sheet_cells":100000,"rows_first":2000,"rows_last":500,"rows_between":2000,"halvings":0,"cell_chars":16384,"cell_head_chars":4096},"cells_cut":0,"cells_raw":0,"read":"whole","date_system":"1900"}

{"sheet":"新規申請書フォーム","index":0,"n_rows":79,"n_cols":95,"rows_kept":79,"cut":false,"hidden":false,"merged":[[13,48,13,50],[13,45,13,47],[7,35,7,44],[9,42,9,44],[9,32,9,34],[10,42,13,44],[10,32,13,34],[8,48,8,50],[8,45,8,47],[7,45,7,50],[9,45,9,47],[12,45,12,47],[12,48,12,50],[9,48,9,50],[10,48,11,50],[10,45,11,47],[9,36,9,41],[10,36,10,41],[11,36,11,41],[12,36,12,41],[13,36,13,41],[8,42,8,44],[8,35,8,41],[15,5,15,8],[16,5,16,20],[14,2,14,20],[17,5,17,20],[18,5,18,20],[19,5,19,20],[14,21,14,37],[15,21,15,23],[16,21,16,23],[17,21,17,23],[18,21,18,23],[19,21,19,37],[15,24,15,37],[16,24,16,37],[17,24,17,37],[18,24,18,37],[15,17,15,20],[15,13,15,16],[15,9,15,12],[69,19,73,23],[58,47,59,48],[0,44,0,50],[0,1,0,43],[15,38,15,40],[16,38,16,40],[17,38,17,40],[18,38,18,40],[19,38,19,40],[15,41,15,50],[16,41,16,50],[17,41,17,50],[18,41,18,50],[19,41,19,50],[9,3,9,10],[10,3,10,10],[11,3,11,10],[12,3,12,10],[13,3,13,10],[15,2,15,4],[18,2,18,4],[16,2,16,4],[17,2,17,4],[19,2,19,4],[69,30,69,33],[69,24,69,27],[69,36,69,37],[69,38,69,41],[69,43,69,44],[69,45,69,48],[69,52,69,55],[70,29,70,32],[70,24,70,26],[70,52,70,55],[70,45,70,48],[97,65,98,67],[97,62,98,64],[40,2,40,42],[24,9,24,42],[29,9,29,42],[30,2,30,42],[24,2,29,8],[43,48,43,50],[46,2,47,4],[44,44,45,46],[44,48,45,50],[39,2,39,42],[38,2,38,42],[33,30,33,40],[36,2,36,42],[37,2,37,42],[36,48,37,50],[36,47,37,47],[60,49,61,50],[95,6,96,10],[94,6,94,10],[94,11,94,14],[95,11,96,14],[50,2,55,50],[62,40,62,41],[62,42,62,44],[60,36,61,38],[58,28,59,29],[58,24,59,27],[58,30,59,34],[36,43,37,43],[35,2,35,42],[58,2,59,23],[60,2,67,34],[58,36,59,38],[58,39,59,44],[60,39,61,44],[38,44,40,46],[63,36,63,40],[63,41,63,45],[63,46,63,50],[64,36,67,40],[64,41,67,45],[64,46,67,50],[60,47,61,48],[58,49,59,50],[48,127,48,132],[49,127,50,132],[25,9,25,42],[27,46,28,50],[31,2,31,42],[32,2,32,42],[34,2,34,42],[46,37,46,42],[47,37,47,42],[46,43,46,50],[47,43,47,50],[46,5,47,36],[48,121,48,126],[49,121,50,126],[25,44,25,46],[26,44,26,46],[26,9,26,42],[27,43,28,45],[27,9,27,42],[43,44,43,46],[38,48,40,50],[28,9,28,42],[36,44,37,46],[11,26,11,28],[11,29,13,31],[12,26,12,28],[13,26,13,28],[2,1,2,4],[2,5,2,10],[4,2,4,4],[4,5,4,28],[5,5,5,28],[2,11,2,14],[2,21,2,24],[2,15,2,20],[2,25,2,30],[5,2,5,4],[7,18,7,34],[7,2,7,17],[8,2,8,10],[14,38,14,50],[22,9,22,42],[23,9,23,42],[22,2,23,8],[58,45,61,46],[9,30,9,31],[10,30,10,31],[8,25,8,31],[12,12,12,17],[8,11,8,17],[8,32,8,34],[9,12,9,17],[10,12,10,17],[11,12,11,17],[9,26,9,28],[10,26,10,28],[13,16,13,17],[13,12,13,14],[9,19,9,24],[10,19,10,24],[11,19,11,24],[12,19,12,24],[13,19,13,24],[8,18,8,24],[72,93,76,93],[70,93,70,94],[72,94,76,94],[72,90,76,90],[72,91,76,91],[70,88,70,89],[70,90,70,91],[72,39,72,41],[79,88,83,88],[79,89,83,89],[79,90,83,90],[70,39,70,41],[72,89,76,89],[72,88,76,88]]}
[null,"新規商品登録申請書：包装済み【全部門】・小分け【精肉・青果・鮮魚（寿司以外）】　買取・売上納品",null,null,null,null,null,null,null,null,null,null,null,null,null,null,null,null,null,null,null,null,null,null,null,null,null,null,null,null,null,null,null,null,null,null,null,null,null,null,null,null,null,null,"20年7月　QC部改訂"]
[null,null,null,null,null,null,null,null,null,null,null,null,null,null,null,null,null,null,null,null,null,null,null,null,null,null,null,null,null,null,null,null,null,null,null,null,null,null,null,null,null,null,null,null,null,null,null,null,null,null,null,null,null,null,null,null,null,null,null,null,null,null,null,null,null,null,null,null,null,null,null,null,null,null,null,null,null,null,null,null,null,null,null,null,null,null,null,null,"510","乾物","510　乾物",null,"グロサリー部","加工食品"]
[null,"部門",null,null,null,"事業推進部",null,null,null,null,null,"担当",null,null,null,"その他",null,null,null,null,null,"ＤＰＴ",null,null,null,"その他",null,null,null,null,null,null,null,null,null,null,null,null,null,null,null,null,null,null,null,null,null,null,null,null,null,null,null,null,null,null,null,null,null,null,null,null,null,null,null,null,null,null,null,null,null,null,null,null,null,null,null,null,null,null,null,null,null,null,null,null,null,null,"511","調味料","511　調味料",null,"マルシェ部","酒"]
[null,"Ⅰ.申請商品の内容（太枠内はお取引先様にて記入下さい）",null,null,null,null,null,null,null,null,null,null,null,null,null,null,null,null,null,null,null,null,null,null,null,null,null,null,null,null,null,null,null,null,null,null,null,null,null,null,null,null,null,null,null,null,null,null,null,null,null,null,null,null,null,null,null,null,null,null,null,null,null,null,null,null,null,null,null,null,null,null,null,null,null,null,null,null,null,null,null,null,null,null,null,null,null,null,"514","菓子","514　菓子",null,"デリカ部","銘店・ギフト"]
[null,null,"商品名",null,null,null,null,null,null,null,null,null,null,null,null,null,null,null,null,null,null,null,null,null,null,null,null,null,null,null,null,null,null,null,null,null,null,null,null,null,null,null,null,null,null,null,null,null,null,null,null,null,null,null,null,null,"惣菜",null,{"$f":"IF(P3=\"惣菜\",1,2)","v":2},null,null,"惣菜・鮮魚（寿司）の小分け商品は申請書のフォームが異なります。QC部情報（商品部）から該当フォームダウンロードし、提出てください。",null,null,null,null,null,null,null,null,null,null,null,null,null,null,null,null,null,null,null,null,null,null,null,null,null,null,"512","飲料・嗜好品","512　飲料・嗜好品",null,"食品業務部","チルドグロサリー"]
[null,null,"ＪＡＮ",null,null,null,null,null,null,null,null,null,null,null,null,null,null,null,null,null,null,null,null,null,null,null,null,null,null,null,null,null,null,null,null,null,null,null,null,null,null,null,null,null,null,null,null,null,null,null,null,null,null,null,null,null,"寿司",null,{"$f":"IF(Z3=\"570　寿司\",1,2)","v":2},null,"惣菜寿司",{"$f":"IF(OR(BG5=1,BG6=1),1,2)","v":2},"↓",null,null,"表示↓",null,null,null,null,null,null,null,null,null,null,null,null,null,null,null,null,null,null,null,null,null,null,"519","ノンアルコール飲料","519　ノンアルコール飲料",null,"食品北海道","精肉"]
[null,null,null,null,null,null,null,null,null,null,null,null,null,null,null,null,null,null,null,null,null,null,null,null,null,null,null,null,null,null,null,null,null,null,null,null,null,null,null,null,null,null,null,null,null,null,null,null,null,null,null,null,null,null,null,null,null,null,null,null,null,null,null,null,null,null,null,null,null,null,null,null,null,null,null,null,null,null,null,null,null,null,null,null,null,null,null,null,"513","酒","513　酒",null,"食品東北","青果"]
[null,null,"納品・取扱区分　※納品区分⇒取扱区分にチェック",null,null,null,null,null,null,null,null,null,null,null,null,null,null,null,"納品時の商品内容",null,null,null,null,null,null,null,null,null,null,null,null,null,null,null,null,"保存温度変更・小分け後",null,null,null,null,null,null,null,null,null,"MD要望",null,null,null,null,null,null,null,null,null,null,null,null,null,null,"小分け",{"$f":"IF(OR(BG9=5),1,2)","v":2},"→",{"$f":"IF(AND(BJ6=1,BJ8=1),1,2)","v":2},"→",{"$f":"IF(BL8=1,\"■こちらの申請書は、惣菜・鮮魚（寿司）の小分け商品の申請フォームではありません。『QC部情報（商品部）』から該当のフォームをダウンロードし、提出てください。\",\"\")","v":""},null,null,null,null,null,null,null,null,null,null,null,null,null,null,null,null,null,null,null,null,null,null,"515","たばこ","515　たばこ",null,"食品中京","鮮魚"]
[null,null,"仕入れ商品\n（買取商品）",null,null,null,null,null,null,null,null,"売上納品商品\n※包装済・バラ売にもチェック",null,null,null,null,null,null,"保存条件",null,null,null,null,null,null,"アレルギー\n（特定原材料）",null,null,null,null,null,null,"賞味消費\n期限",null,null,"保存条件",null,null,null,null,null,null,"賞味消費\n期限",null,null,"納品\n期限",null,null,"販売\n期限",null,null,null,null,null,null,null,"仕入れ",null,null,null,"Ⅰ．申請書の内容の「納品・取扱区分」にチェックはしていますか。",null,null,null,null,null,null,null,null,null,null,null,null,null,null,null,null,null,null,null,null,null,null,null,null,null,null,null,"531","加食１０％","531　加食１０％",null,"食品信越","チルドデリカ"]
[null,null,null,"メーカーパック（PB）",null,null,null,null,null,null,null,null,"物産催事",null,null,null,null,null,null,"常温",null,null,null,null,null,null,"小麦",null,null,null,"えび",null,"D＋",null,null,null,"常温",null,null,null,null,null,"UD＋",null,null,"Q－",null,null,"S－",null,null,null,null,null,null,null,"売納",null,1,null,"表示",{"$f":"IF(AND(BG9=\"\",BG10=\"\"),1,2)","v":2},null,{"$f":"IF(BJ10=1,\"■Ⅰ.申請書の内容の『納品・取扱区分』にチェックはしていますか。\",\"\")","v":""},null,null,null,null,null,null,null,null,null,null,null,null,null,null,null,null,null,null,null,null,null,null,null,null,"520","パン・軽食","520　パン・軽食",null,"食品関西","ホットデリカ"]
[null,null,null,"メーカーパック（留型）",null,null,null,null,null,null,null,null,"個店扱い(地域セール)",null,null,null,null,null,null,"10℃以下",null,null,null,null,null,null,"乳成分",null,null,null,"かに",null,null,null,null,null,"10℃以下",null,null,null,null,null,null,null,null,null,null,null,null,null,null,null,null,null,null,null,"売納（包装）",null,1,null,"Ⅰ．申請書の内容の取扱区分について、売上納品商品なので「包装済」「バラ売」のどちらかにチェックをしてください。",null,null,null,null,null,null,null,null,null,null,null,null,null,null,null,null,null,null,null,null,null,null,null,null,null,null,null,"521","デザ－ト","521　デザ－ト",null,"新規MD開発部","デリカリース"]
[null,null,null,"メーカーパック（NB）",null,null,null,null,null,null,null,null,"個店扱い(通常品揃え)",null,null,null,null,null,null,"4℃以下",null,null,null,null,null,null,"卵",null,null,null,null,null,null,null,null,null,"4℃以下",null,null,null,null,null,null,null,null,null,null,null,null,null,null,null,null,null,null,null,"保存条件",null,1,null,"表示",{"$f":"IF(OR(BG10=1,BG10=2,BG10=3,BG10=4),1,2)","v":1},"→",{"$f":"IF(AND(BJ12=1,BG11=\"\"),1,2)","v":2},{"$f":"IF(BL12=1,\"■Ⅰ.申請書の内容の『取扱区分』について、売上納品商品なので「包装済』『バラ売』のどちらかにチェックはしていますか。\",\"\")","v":""},null,null,null,null,null,null,null,null,null,null,null,null,null,null,null,null,null,null,null,null,null,null,null,"522","飲料・乳製品","522　飲料・乳製品",null,"リーシング部","クッキング・ミールキット"]
[null,null,null,"保存温度帯変更",null,null,null,null,null,null,null,null,"リース",null,null,null,null,null,null,"冷凍",null,null,null,null,null,null,"落花生",null,null,null,null,null,null,null,null,null,"‐5℃以下",null,null,null,null,null,null,null,null,"N＋",null,null,"D＋",null,null,null,null,null,null,null,"小麦",null,false,null,"Ⅰ．申請書の内容の「保存条件」にチェックはしていますか。",null,null,null,null,null,null,null,null,null,null,null,null,null,null,null,null,null,null,null,null,null,null,null,null,null,null,null,"523","和風素材","523　和風素材",null,"事業推進部","ネット担当"]
[null,null,null,"小分け用原料",null,null,null,null,null,null,null,null,"包装済",null,null,null,"バラ売",null,null,"その他(　　　　　)",null,null,null,null,null,null,"そば",null,null,null,null,null,null,null,null,null,"その他(　　　　　)",null,null,null,null,null,null,null,null,null,null,null,null,null,null,null,null,null,null,null,"乳",null,null,null,"表示",{"$f":"IF(BG12=\"\",\"■Ⅰ.申請書の内容の『保存条件』にチェックはしていますか。\",\"\")","v":""},null,null,null,null,null,null,null,null,null,null,null,null,null,null,null,null,null,null,null,null,null,null,null,null,null,null,"528","おかず惣菜","528　おかず惣菜",null,"その他","その他"]
[null,null,"申請商品の表示責任者",null,null,null,null,null,null,null,null,null,null,null,null,null,null,null,null,null,null,"製造工場",null,null,null,null,null,null,null,null,null,null,null,null,null,null,null,null,"当社の仕入先",null,null,null,null,null,null,null,null,null,null,null,null,null,null,null,null,null,"卵",null,false,null,"Ⅰ．申請書の内容の「温度変更・小分け後　保存条件」にチェックはしていますか。",null,null,null,null,null,null,null,null,null,null,null,null,null,null,null,null,null,null,null,null,null,null,null,null,null,null,null,"524","冷凍食品","524　冷凍食品"]
[null,null,"チェック",null,null,"製造者",null,null,null,"加工者",null,null,null,"販売者",null,null,null,"輸入者",null,null,null,"工場名①",null,null,null,null,null,null,null,null,null,null,null,null,null,null,null,null,"ふりがな",null,null,null,null,null,null,null,null,null,null,null,null,null,null,null,null,null,"落花生",null,null,null,"表示",{"$f":"IF(OR(BG9=4,BG9=5),1,2)","v":2},"→",{"$f":"IF(AND(BJ16=1,BG20=\"\"),\"■Ⅰ.申請書の内容の『温度変更・小分け後　保存条件』にチェックはしていますか。\",\"\")","v":""},null,null,null,null,null,null,null,null,null,null,null,null,null,null,null,null,null,null,null,null,null,null,null,null,"526","リ－スデイリ－","526　リ－スデイリ－"]
[null,null,"ふりがな",null,null,null,null,null,null,null,null,null,null,null,null,null,null,null,null,null,null,"住所①",null,null,null,null,null,null,null,null,null,null,null,null,null,null,null,null,"仕入先名",null,null,null,null,null,null,null,null,null,null,null,null,null,null,null,null,null,"そば",null,false,null,"Ⅱ．申請商品の確認チェック欄に「いいえ」があります。取引先様に内容をご確認ください。",null,null,null,null,null,null,null,null,null,null,null,null,null,null,null,null,null,null,null,null,null,null,null,null,null,null,null,"527","デイリ－１０％","527　デイリ－１０％"]
[null,null,"メーカー名",null,null,null,null,null,null,null,null,null,null,null,null,null,null,null,null,null,null,"工場名②",null,null,null,null,null,null,null,null,null,null,null,null,null,null,null,null,"担当者",null,null,null,null,null,null,null,null,null,null,null,null,null,null,null,null,null,"えび",null,false,null,"表示",{"$f":"IF(OR(CH33=2,CH34=2,CH35=2,CH36=2,CH37=2,CH38=2,CH39=2,CH40=2,CH41=2,CH43=2,CH44=2,CH45=2),\"■Ⅱ.申請商品の確認チェック欄に『いいえ』があります。取引先様に内容をご確認ください。\",\"\")","v":""},null,null,null,null,null,null,null,null,null,null,null,null,null,null,null,null,null,null,null,null,null,null,null,null,null,null,"551","牛肉","551　牛肉"]
[null,null,"住所",null,null,null,null,null,null,null,null,null,null,null,null,null,null,null,null,null,null,"住所②",null,null,null,null,null,null,null,null,null,null,null,null,null,null,null,null,"書類責任者",null,null,null,null,null,null,null,null,null,null,null,null,null,null,null,null,null,"かに",null,false,null,"Ⅱ．賞味期限の根拠にチェック漏れはありませんか？",null,null,null,null,null,null,null,null,null,null,null,null,null,null,null,null,null,null,null,null,null,null,null,null,null,null,null,"552","豚肉","552　豚肉"]
[null,null,"TEL",null,null,null,null,null,null,null,null,null,null,null,null,null,null,null,null,null,null,null,null,null,null,null,null,null,null,null,null,null,null,null,null,null,null,null,"TEL",null,null,null,null,null,null,null,null,null,null,null,null,null,null,null,null,null,"小分け後温度",null,null,null,"表示",{"$f":"IF(AND(CH43=1,BE23<>1),\"■Ⅱ.申請商品の確認の④『賞味期限の根拠』にチェックはしていますか。\",\"\")","v":""},null,null,null,null,null,null,null,null,null,null,null,null,null,null,null,null,null,null,null,null,null,null,null,null,null,null,"553","鶏肉","553　鶏肉"]
[null,null,null,null,null,null,null,null,null,null,null,null,null,null,null,null,null,null,null,null,null,null,null,null,null,null,null,null,null,null,null,null,null,null,null,null,null,null,null,null,null,null,null,null,null,null,null,null,null,null,null,null,null,null,null,null,null,null,null,null,null,null,null,null,null,null,null,null,null,null,null,null,null,null,null,null,null,null,null,null,null,null,null,null,null,null,null,null,"554","生食・デリカ","554　生食・デリカ"]
[null,"Ⅱ.申請商品の確認（お取引先様の『申請書類責任者』が記入）",null,null,null,null,null,null,null,null,null,null,null,null,null,null,null,null,null,null,null,null,null,null,null,null,null,null,null,null,null,null,null,null,null,null,null,null,null,null,null,null,null,null,null,null,null,null,null,null,null,null,null,null,null,null,"↓賞味期限根拠チェック関数",null,null,null,"Ⅲ．商品部記入欄「新規の取引先である」が「はい」になっていますので、「工場管理体制確認表」又は仕入先で持っている同等の帳票を提出して下さい。",null,null,null,null,null,null,null,null,null,null,null,null,null,null,null,null,null,null,null,null,null,null,null,null,null,null,null,"550","挽肉・関連品","550　挽肉・関連品"]
[null,null,"①食品表示法",null,null,null,null,null,null,"ⅰ）食品表示基準を遵守している",null,null,null,null,null,null,null,null,null,null,null,null,null,null,null,null,null,null,null,null,null,null,null,null,null,null,null,null,null,null,null,null,null,null,"　はい",null,null,null,"いいえ",null,null,null,null,null,null,null,{"$f":"IF(OR(CI39=TRUE,CI40=TRUE,CI41=TRUE,CI42=TRUE),1,\"\")","v":""},null,null,null,"表示",{"$f":"IF(CH46=1,\"■Ⅲ.商品部記入欄の①『新規の取引先である』が『はい』になっていますので、『工場管理体制確認表』又は仕入先で持っている同等の帳票を提出して下さい。\",\"\")","v":"■Ⅲ.商品部記入欄の①『新規の取引先である』が『はい』になっていますので、『工場管理体制確認表』又は仕入先で持っている同等の帳票を提出して下さい。"},null,null,null,null,null,null,null,null,null,null,null,null,null,null,null,null,null,null,null,null,null,null,null,null,null,null,"555","加工肉","555　加工肉"]
[null,null,null,null,null,null,null,null,null,"ⅱ）表示の根拠資料は、適切な期間保管している",null,null,null,null,null,null,null,null,null,null,null,null,null,null,null,null,null,null,null,null,null,null,null,null,null,null,null,null,null,null,null,null,null,null,"　はい",null,null,null,"いいえ",null,null,null,null,null,null,null,"製造者",null,1,null,"Ⅲ．商品部記入欄にチェック漏れはありませんか？",null,null,null,null,null,null,null,null,null,null,null,null,null,null,null,null,null,null,null,null,null,null,null,null,null,null,null,"557","卵","557　卵"]
[null,null,"②食品衛生法",null,null,null,null,null,null,"ⅰ）製品・原料について、農薬・動物医薬品等の基準を遵守している",null,null,null,null,null,null,null,null,null,null,null,null,null,null,null,null,null,null,null,null,null,null,null,null,null,null,null,null,null,null,null,null,null,null,"　はい",null,null,null,"いいえ",null,null,null,null,null,null,null,"納品形態",null,2,null,"表示",{"$f":"IF(OR(CH46=\"\",CH47=\"\"),\"■Ⅲ.商品部記入欄にチェック漏れはありませんか。\",\"\")","v":""},null,null,null,null,null,null,null,null,null,null,null,null,null,null,null,null,null,null,null,null,null,null,null,null,null,null,"558","リ－ス精肉","558　リ－ス精肉"]
[null,null,null,null,null,null,null,null,null,"ⅱ）使用基準のある添加物については、基準内使用のデータをもっている",null,null,null,null,null,null,null,null,null,null,null,null,null,null,null,null,null,null,null,null,null,null,null,null,null,null,null,null,null,null,null,null,null,null,"はい・\n使用なし",null,null,null,"いいえ",null,null,null,null,null,null,null,null,null,null,null,"Ⅲ．商品部記入欄⓶が『いいえ』となっております。",null,null,null,null,null,null,null,null,null,null,null,null,null,null,null,null,null,null,null,null,null,null,null,null,null,null,null,"561","一般果実","561　一般果実"]
[null,null,null,null,null,null,null,null,null,"ⅲ）規格基準のある製品については基準を満たしている",null,null,null,null,null,null,null,null,null,null,null,null,null,null,null,null,null,null,null,null,null,null,null,null,null,null,null,null,null,null,null,null,null,null,"はい・\n該当なし",null,null,null,"いいえ",null,null,null,null,null,null,null,null,null,null,null,"表示",{"$f":"IF(CH47=2,\"■Ⅲ.商品部記入欄の⓶工場確認体制が『いいえ』となっております。確認の上、提出ください。\",\"\")","v":""},null,null,null,null,null,null,null,null,null,null,null,null,null,null,null,null,null,null,null,null,null,null,null,null,null,null,"562","季節果実","562　季節果実"]
[null,null,null,null,null,null,null,null,null,"ⅳ）HACCPに基づく衛生管理がされていて、事業規模に応じた衛生管理計画と",null,null,null,null,null,null,null,null,null,null,null,null,null,null,null,null,null,null,null,null,null,null,null,null,null,null,null,null,null,null,null,null,null,"　　　はい",null,null,"　　いいえ",null,null,null,null,null,null,null,null,null,null,null,null,null,"↓QC所見関数",null,null,null,null,null,null,null,null,null,null,null,null,null,null,null,null,null,null,null,null,null,null,null,null,null,null,null,"563","一般野菜","563　一般野菜"]
[null,null,null,null,null,null,null,null,null,"　　　記録の保存がある",null,null,null,null,null,null,null,null,null,null,null,null,null,null,null,null,null,null,null,null,null,null,null,null,null,null,null,null,null,null,null,null,null,null,null,null,null,null,null,null,null,null,null,null,null,null,null,null,null,null,{"$f":"CONCATENATE(BN8,\"　\",BL10,\"　\",BM12,\"　\",BJ34,\"　\",BJ14,\"　\",BL16,\"　\",BJ32,\"　\",BJ18,\"　\",BJ20,\"　\",BJ23,\"　\",BJ25,\"　\",BJ27)","v":"　　　　　　■Ⅱ.取引先様記入欄にチェック漏れはありませんか。　　　■Ⅲ.商品部記入欄の①『新規の取引先である』が『はい』になっていますので、『工場管理体制確認表』又は仕入先で持っている同等の帳票を提出して下さい。　　"},null,null,null,null,null,null,null,null,null,null,null,null,null,null,null,null,null,null,null,null,null,null,null,null,null,null,null,"564","季節野菜","564　季節野菜"]
[null,null,null,null,null,null,null,null,null,"ⅴ）食品製造用の器具や容器包装は、法律に適合したものを使用している",null,null,null,null,null,null,null,null,null,null,null,null,null,null,null,null,null,null,null,null,null,null,null,null,null,null,null,null,null,null,null,null,null,null,"　はい",null,null,null,"いいえ",null,null,null,null,null,null,null,null,null,null,null,null,null,null,null,null,null,null,null,null,null,null,null,null,null,null,null,null,null,null,null,null,null,null,null,null,null,null,null,"565","加工野菜","565　加工野菜"]
[null,null,"③その他の法令（健康増進法・景表法・都道府県条例等）についても遵守している",null,null,null,null,null,null,null,null,null,null,null,null,null,null,null,null,null,null,null,null,null,null,null,null,null,null,null,null,null,null,null,null,null,null,null,null,null,null,null,null,null,"　はい",null,null,null,"いいえ",null,null,null,null,null,null,null,null,null,null,null,"Ⅱ．取引先様記入欄にチェック漏れはありませんか？",null,null,null,null,null,null,null,null,null,null,null,null,null,null,null,null,null,null,null,null,null,null,null,null,null,null,null,"566","フラワ－","566　フラワ－"]
[null,null,"④「食品期限表示の設定のためのガイドライン」に準じた賞味（消費）期限設定の根拠を持ち、",null,null,null,null,null,null,null,null,null,null,null,null,null,null,null,null,null,null,null,null,null,null,null,null,null,null,null,null,null,null,null,null,null,null,null,null,null,null,null,null,null,null,null,null,null,null,null,null,null,null,null,null,null,null,null,null,null,"表示",{"$f":"IF(OR(CH33=\"\",CH34=\"\",CH36=\"\",CH37=\"\",CH38=\"\",CH39=\"\",CH40=\"\",CH41=\"\",CH43=\"\",CH44=\"\",CH45=\"\"),\"■Ⅱ.取引先様記入欄にチェック漏れはありませんか。\",\"\")","v":"■Ⅱ.取引先様記入欄にチェック漏れはありませんか。"},null,null,null,null,null,null,null,null,null,null,null,null,null,null,null,null,null,null,null,null,null,null,null,null,null,null,"570","寿司","570　寿司"]
[null,null,"　それに従って適切な賞味（消費）期限の表示をしている",null,null,null,null,null,null,null,null,null,null,null,null,null,null,null,null,null,null,null,null,null,null,null,null,null,null,null,null,null,null,null,null,null,null,null,null,null,null,null,null,null,"　はい",null,null,null,"いいえ",null,null,null,null,null,null,null,null,null,null,null,"Ⅰ．申請書の内容の「製造者／加工者／販売者／輸入者」にチェックはしていますか。",null,null,null,null,null,null,null,null,null,null,null,null,null,null,null,null,null,null,null,null,null,null,null,null,null,null,null,"571","刺身","571　刺身"]
[null,null,"　根拠の種類【",null,null,null,null,null,null,null,null,null,null,null,null,null,null,null,null,null,null,null,null,null,null,null,null,null,null,"（","具体的に記入",null,null,null,null,null,null,null,null,null,null,"）】",null,null,null,null,null,null,null,null,null,null,null,null,null,null,null,null,null,null,"表示",{"$f":"IF(BG24=\"\",\"■Ⅰ.申請書の内容の「製造者／加工者／販売者／輸入者」にチェックはしていますか。\",\"\")","v":""},null,null,null,null,null,null,null,null,null,null,null,null,null,null,null,null,null,null,null,null,null,null,null,null,null,null,"572","丸物","572　丸物"]
[null,null,"　※右枠の「はい」にチェックがされている場合、上記「根拠の種類」を必ずチェックして下さい。",null,null,null,null,null,null,null,null,null,null,null,null,null,null,null,null,null,null,null,null,null,null,null,null,null,null,null,null,null,null,null,null,null,null,null,null,null,null,null,null,null," 該当なし",null,null,null,null,null,null,null,null,null,null,null,null,null,null,null,null,null,null,null,null,null,null,null,null,null,null,null,null,null,null,null,null,null,null,null,null,null,null,null,null,null,null,null,"573","切身","573　切身"]
[null,null,"　※賞味（消費）期間が10日以内の「保存検査必要商品」は、期限を保証する成績書を添付して下さい。",null,null,null,null,null,null,null,null,null,null,null,null,null,null,null,null,null,null,null,null,null,null,null,null,null,null,null,null,null,null,null,null,null,null,null,null,null,null,null,null,null,"（期限表示なし）",null,null,null,null,null,null,null,null,null,null,null,null,null,null,null,null,null,null,null,null,null,null,null,null,null,null,null,null,null,null,null,null,null,null,null,null,null,null,null,null,null,null,null,"574","シ－フ－ド","574　シ－フ－ド"]
[null,null,"⑤お客様対応や商品事故対応など、必要に応じて調査・報告をして頂く他、弊社の求めにより、",null,null,null,null,null,null,null,null,null,null,null,null,null,null,null,null,null,null,null,null,null,null,null,null,null,null,null,null,null,null,null,null,null,null,null,null,null,null,null,null,null,"　はい",null,null,null,"いいえ",null,null,null,null,null,null,null,null,null,null,null,null,null,null,null,null,null,null,null,null,null,null,null,null,null,null,null,null,null,null,null,null,null,null,null,null,null,null,null,"575","生食加工品","575　生食加工品"]
[null,null,"　生産現場への立ち入りや改善依頼・製品や生産に関する情報開示に応じて頂ける",null,null,null,null,null,null,null,null,null,null,null,null,null,null,null,null,null,null,null,null,null,null,null,null,null,null,null,null,null,null,null,null,null,null,null,null,null,null,null,null,null,null,null,null,null,null,null,null,null,null,null,null,null,null,null,null,null,null,null,null,null,null,null,null,null,null,null,null,null,null,null,null,null,null,null,null,null,null,null,null,null,null,null,null,null,"576","調理加工品","576　調理加工品"]
[null,null,"⑥仕入先は厚労省から発出されている「食品等事業者が実施すべき管理運営基準」やHACCPの考え方に",null,null,null,null,null,null,null,null,null,null,null,null,null,null,null,null,null,null,null,null,null,null,null,null,null,null,null,null,null,null,null,null,null,null,null,null,null,null,null,null,null,"　はい",null,null,null,"いいえ",null,null,null,null,null,null,null,null,null,null,null,null,null,null,null,null,null,null,null,null,null,null,null,null,null,null,null,null,null,null,null,null,null,null,null,null,null,null,null,"577","塩干","577　塩干"]
[null,null,"　基づき、製造工場の生産体制や安全管理体制、法令順守の状況について問題の無い事を確認している",null,null,null,null,null,null,null,null,null,null,null,null,null,null,null,null,null,null,null,null,null,null,null,null,null,null,null,null,null,null,null,null,null,null,null,null,null,null,null,null,null,null,null,null,null,null,null,null,null,null,null,null,null,null,null,null,null,null,null,null,null,null,null,null,null,null,null,null,null,null,null,null,null,null,null,null,null,null,null,null,null,null,null,null,null,"582","冷惣菜","582　冷惣菜"]
[null,null,"　【新規取引先の場合は、添付の「工場管理体制確認表」又は仕入先で持っている同等の帳票を提出して下さい】",null,null,null,null,null,null,null,null,null,null,null,null,null,null,null,null,null,null,null,null,null,null,null,null,null,null,null,null,null,null,null,null,null,null,null,null,null,null,null,null,null,null,null,null,null,null,null,null,null,null,null,null,null,null,null,null,null,null,null,null,null,null,null,null,null,null,null,null,null,null,null,null,null,null,null,null,null,null,null,null,null,null,null,null,null,"583","温惣菜","583　温惣菜"]
[null,null,null,null,null,null,null,null,null,null,null,null,null,null,null,null,null,null,null,null,null,null,null,null,null,null,null,null,null,null,null,null,null,null,null,null,null,null,null,null,null,null,null,null,null,null,null,null,null,null,null,null,null,null,null,null,null,null,null,null,null,null,null,null,null,null,null,null,null,null,null,null,null,null,null,null,null,null,null,null,null,null,null,null,null,null,null,null,"584","弁当","584　弁当"]
[null,"Ⅲ.商品部（個店で仕入れる商品の場合：店舗担当者）記入欄",null,null,null,null,null,null,null,null,null,null,null,null,null,null,null,null,null,null,null,null,null,null,null,null,null,null,null,null,null,null,null,null,null,null,null,null,null,null,null,null,null,null,null,null,null,null,null,null,null,null,null,null,null,null,null,null,null,null,null,null,null,null,null,null,null,null,null,null,null,null,null,null,null,null,null,null,null,null,null,null,null,null,null,null,null,null,"587","ベ－カリ－","587　ベ－カリ－"]
[null,null,"①新規の取引先である",null,null,null,null,null,null,null,null,null,null,null,null,null,null,null,null,null,null,null,null,null,null,null,null,null,null,null,null,null,null,null,null,null,null,null,null,null,null,null,null,null,"　はい",null,null,null,"いいえ",null,null,null,null,null,null,null,null,null,null,null,null,null,null,null,null,null,null,null,null,null,null,null,null,null,null,null,null,null,null,null,null,null,null,null,null,null,null,null,"588","冠生園","588　冠生園"]
[null,null,"②商品部MD・DB（個店で仕入れる場合：店舗担当者）は、お取引先と、工場の生産体制や安全管理体制の確認を",null,null,null,null,null,null,null,null,null,null,null,null,null,null,null,null,null,null,null,null,null,null,null,null,null,null,null,null,null,null,null,null,null,null,null,null,null,null,null,null,null,"　はい",null,null,null,"いいえ",null,null,null,null,null,null,null,null,null,null,null,null,null,null,null,null,null,null,null,null,null,null,null,null,null,null,null,null,null,null,null,null,null,null,null,null,null,null,null,"586","リ－ス惣菜","586　リ－ス惣菜"]
[null,null,"　行っている。また、新規お取引先工場の場合は、生産現場を確認している",null,null,null,null,null,null,null,null,null,null,null,null,null,null,null,null,null,null,null,null,null,null,null,null,null,null,null,null,null,null,null,null,null,null,null,null,null,null,null,null,null,null,null,null,null,null,null,null,null,null,null,null,null,null,null,null,null,null,null,null,null,null,null,null,null,null,null,null,null,null,null,null,null,null,null,null,null,null,null,null,null,null,1,null,null,"581","惣菜イベント","581　惣菜イベント"]
[null,null,"特記\n事項",null,null,null,null,null,null,null,null,null,null,null,null,null,null,null,null,null,null,null,null,null,null,null,null,null,null,null,null,null,null,null,null,null,null,"取扱い店・地域",null,null,null,null,null,"甲府昭和店",null,null,null,null,null,null,null,null,null,null,null,null,null,null,null,null,null,null,null,null,null,null,null,null,null,null,null,null,null,null,null,null,null,null,null,null,null,null,null,null,null,1,null,null,"540","一般食品ギフト","540　一般食品ギフト"]
[null,null,null,null,null,null,null,null,null,null,null,null,null,null,null,null,null,null,null,null,null,null,null,null,null,null,null,null,null,null,null,null,null,null,null,null,null,"発売予定日",null,null,null,null,null,"2021-10-19",null,null,null,null,null,null,null,null,null,null,null,null,null,null,null,null,null,null,null,null,null,null,null,null,null,null,null,null,null,null,null,null,null,null,null,null,null,null,null,null,null,null,null,null,"541","酒ギフト","541　酒ギフト"]
[null,null,null,null,null,null,null,null,null,null,null,null,null,null,null,null,null,null,null,null,null,null,null,null,null,null,null,null,null,null,null,null,null,null,null,null,null,null,null,null,null,null,null,null,null,null,null,null,null,null,null,null,null,null,null,null,null,null,null,null,null,null,null,null,null,null,null,null,null,null,null,null,null,null,null,null,null,null,null,null,null,null,null,null,null,null,null,null,"525","デザ－ト・アイスギフト","525　デザ－ト・アイスギフト"]
[null,"Ⅳ.商品部・店舗担当者の皆様へ：提出前確認事項（チェック不備等で自動入力されますので、確認・修正の上、提出）",null,null,null,null,null,null,null,null,null,null,null,null,null,null,null,null,null,null,null,null,null,null,null,null,null,null,null,null,null,null,null,null,null,null,null,null,null,null,null,null,null,null,null,null,null,null,null,null,null,null,null,null,null,null,null,null,null,null,null,null,null,null,null,null,null,null,null,null,null,null,null,null,null,null,null,null,null,null,null,null,null,null,null,null,null,null,"542","ハム・畜産ギフト","542　ハム・畜産ギフト"]
[null,null,{"$f":"IF(OR(BI29=\"　\",BI29=\"　　\",BI29=\"　　　\",BI29=\"　　　　\",BI29=\"　　　　　\",BI29=\"　　　　　　\",BI29=\"　　　　　　　\",BI29=\"　　　　　　　　\",BI29=\"　　　　　　　　　\",BI29=\"　　　　　　　　　　\",BI29=\"　　　　　　　　　　　\",BI29=\"　　　　　　　　　　　　\"),\"特になし\",BI29)","v":"　　　　　　■Ⅱ.取引先様記入欄にチェック漏れはありませんか。　　　■Ⅲ.商品部記入欄の①『新規の取引先である』が『はい』になっていますので、『工場管理体制確認表』又は仕入先で持っている同等の帳票を提出して下さい。　　"},null,null,null,null,null,null,null,null,null,null,null,null,null,null,null,null,null,null,null,null,null,null,null,null,null,null,null,null,null,null,null,null,null,null,null,null,null,null,null,null,null,null,null,null,null,null,null,null,null,null,null,null,null,null,null,null,null,null,null,null,null,null,null,null,null,null,null,null,null,null,null,null,null,null,null,null,null,null,null,null,null,null,null,null,null,"567","果物・野菜ギフト","567　果物・野菜ギフト"]
[null,null,null,null,null,null,null,null,null,null,null,null,null,null,null,null,null,null,null,null,null,null,null,null,null,null,null,null,null,null,null,null,null,null,null,null,null,null,null,null,null,null,null,null,null,null,null,null,null,null,null,null,null,null,null,null,null,null,null,null,null,null,null,null,null,null,null,null,null,null,null,null,null,null,null,null,null,null,null,null,null,null,null,null,null,null,null,null,"543","フラワ－ギフト","543　フラワ－ギフト"]
[null,null,null,null,null,null,null,null,null,null,null,null,null,null,null,null,null,null,null,null,null,null,null,null,null,null,null,null,null,null,null,null,null,null,null,null,null,null,null,null,null,null,null,null,null,null,null,null,null,null,null,null,null,null,null,null,null,null,null,null,null,null,null,null,null,null,null,null,null,null,null,null,null,null,null,null,null,null,null,null,null,null,null,null,null,null,null,null,"544","水産ギフト","544　水産ギフト"]
[null,null,null,null,null,null,null,null,null,null,null,null,null,null,null,null,null,null,null,null,null,null,null,null,null,null,null,null,null,null,null,null,null,null,null,null,null,null,null,null,null,null,null,null,null,null,null,null,null,null,null,null,null,null,null,null,null,null,null,null,null,null,null,null,null,null,null,null,null,null,null,null,null,null,null,null,null,null,null,null,null,null,null,null,null,null,null,null,"546","食品ギフト１０％","546　食品ギフト１０％"]
[null,null,null,null,null,null,null,null,null,null,null,null,null,null,null,null,null,null,null,null,null,null,null,null,null,null,null,null,null,null,null,null,null,null,null,null,null,null,null,null,null,null,null,null,null,null,null,null,null,null,null,null,null,null,null,null,null,null,null,null,null,null,null,null,null,null,null,null,null,null,null,null,null,null,null,null,null,null,null,null,null,null,null,null,null,null,null,null,"518","喫茶","518　喫茶"]
[null,null,null,null,null,null,null,null,null,null,null,null,null,null,null,null,null,null,null,null,null,null,null,null,null,null,null,null,null,null,null,null,null,null,null,null,null,null,null,null,null,null,null,null,null,null,null,null,null,null,null,null,null,null,null,null,null,null,null,null,null,null,null,null,null,null,null,null,null,null,null,null,null,null,null,null,null,null,null,null,null,null,null,null,null,null,null,null,"516","銘店・イベント","516　銘店・イベント"]
[null,null,null,null,null,null,null,null,null,null,null,null,null,null,null,null,null,null,null,null,null,null,null,null,null,null,null,null,null,null,null,null,null,null,null,null,null,null,null,null,null,null,null,null,null,null,null,null,null,null,null,null,null,null,null,null,null,null,null,null,null,null,null,null,null,null,null,null,null,null,null,null,null,null,null,null,null,null,null,null,null,null,null,null,null,null,null,null,"548","銘店１０％","548　銘店１０％"]
[null,"Ⅴ.QC部記入欄（所見）",null,null,null,null,null,null,null,null,null,null,null,null,null,null,null,null,null,null,null,null,null,null,null,null,null,null,null,null,null,null,null,null,null,null,null,null,null,null,null,null,null,null,null,null,null,null,null,null,null,null,null,null,null,null,null,null,null,null,null,null,null,null,null,null,null,null,null,null,null,null,null,null,null,null,null,null,null,null,null,null,null,null,null,null,null,null,"547","喫茶包材","547　喫茶包材"]
[null,null,null,null,null,null,null,null,null,null,null,null,null,null,null,null,null,null,null,null,null,null,null,null,"可",null,null,null,"／",null,"保留",null,null,null,null,null,"承認№",null,null,null,null,null,null,null,null,"販売\n期限\n決定",null,"S－",null,null,null,null,null,null,null,null,null,null,null,null,null,null,null,null,null,null,null,null,null,null,null,null,null,null,null,null,null,null,null,null,null,null,null,null,null,null,null,null,"549","銘店包材","549　銘店包材"]
[null,null,null,null,null,null,null,null,null,null,null,null,null,null,null,null,null,null,null,null,null,null,null,null,null,null,null,null,null,null,null,null,null,null,null,null,null,null,null,null,null,null,null,null,null,null,null,null,null,null,null,null,null,null,null,null,null,null,null,null,null,null,null,null,null,null,null,null,null,null,null,null,null,null,null,null,null,null,null,null,null,null,null,null,null,null,null,null,"その他",null,"その他"]
[null,null,null,null,null,null,null,null,null,null,null,null,null,null,null,null,null,null,null,null,null,null,null,null,null,null,null,null,null,null,null,null,null,null,null,null,"受付№",null,null,null,null,null,null,null,null,null,null,"D＋"]
[]
[]
[null,null,null,null,null,null,null,null,null,null,null,null,null,null,null,null,null,null,null,null,null,null,null,null,null,null,null,null,null,null,null,null,null,null,null,null,"最終承認",null,null,null,null,"QC部⓶",null,null,null,null,"QC部①"]
[null,null,null,null,null,null,null,null,null,null,null,null,null,null,null,null,null,null,null,null,null,null,null,null,null,null,null,null,null,null,null,null,null,null,null,null,{"$f":"IFERROR(IF(AN71=TRUE,\"確認済\",IF(AN73=TRUE,\"確認済㈹\",\"　\")),\"　\")","v":"　"},null,null,null,null,{"$f":"IF(AT71=TRUE,\"確認済\",\"　\")","v":"　"},null,null,null,null,{"$f":"IF(BA71=TRUE,\"確認済\",\"　\")","v":"　"}]
[]
[]
[]
[]
[null,null,null,null,null,null,null,null,null,null,null,null,null,null,null,null,null,null,null,"QC部\n使用欄\n※削除不可",null,null,null,null,"可",null,null,null,null,null,"保留",null,null,null,null,null,null,null,"GM",null,null,null,null,null,null,"QC部⓶",null,null,null,null,null,null,"QC部①"]
[null,null,null,null,null,null,null,null,null,null,null,null,null,null,null,null,null,null,null,null,null,null,null,null,false,null,null,null,null,false,null,null,null,null,null,null,null,null,null,false,null,null,null,null,null,false,null,null,null,null,null,null,false,null,null,null,null,null,null,null,null,null,null,null,null,null,null,null,null,null,null,null,null,null,null,null,null,null,null,null,null,null,null,null,null,null,null,null,"商品部",null,"店舗",null,null,{"$f":"IF($BG$25=2,\"店舗\",\"\")","v":"店舗"}]
[null,null,null,null,null,null,null,null,null,null,null,null,null,null,null,null,null,null,null,null,null,null,null,null,null,null,null,null,null,null,null,null,null,null,null,null,null,null,null,"代行",null,null,null,null,null,null,null,null,null,null,null,null,null,null,null,null,null,null,null,null,null,null,null,null,null,null,null,null,null,null,null,null,null,null,null,null,null,null,null,null,null,null,null,null,null,null,null,null,"上長印","担当MD","SM印","担当者",null,{"$f":"IF($BG$25=2,\"SM\",\"\")","v":"SM"},{"$f":"IF($BG$25=2,\"担当者\",\"\")","v":"担当者"}]
[null,null,null,null,null,null,null,null,null,null,null,null,null,null,null,null,null,null,null,null,null,null,null,null,null,null,null,null,null,null,null,null,null,null,null,null,null,null,null,false]
[]
[]
[]
[null,null,null,null,null,null,null,null,null,null,null,null,null,null,null,null,null,"事業部","部門","商品名","納品","取扱（仕入れ）","取扱（売納）","売納包装","事項名","製造者","工場名①","住所①","工場名⓶","住所②","仕入れ先","新規"]
[null,null,null,null,null,null,null,null,null,null,null,null,null,null,null,null,null,{"$f":"IF($F$3=\"\",\"\",$F$3)","v":"事業推進部"},{"$f":"IF($P$3=\"\",\"\",$P$3)","v":"その他"},{"$f":"IF($F$5=\"\",\"\",$F$5)","v":""},{"$f":"IF($BG$25=1,\"仕入れ\",IF($BG$25=2,\"売納\",\"\"))","v":"売納"},{"$f":"IF($BG$9=1,\"PB\",IF($BG$9=2,\"留型\",IF($BG$9=3,\"NB\",IF($BG$9=4,\"温度変更\",IF($BG$9=5,\"小分け\",\"\")))))","v":""},{"$f":"IF($BG$10=1,\"物産催事\",IF($BG$10=2,\"リース\",IF($BG$10=3,\"個店(地域セール)\",IF($BG$10=4,\"個店（通常品揃え）\",\"\"))))","v":"物産催事"},{"$f":"IF($BG$11=1,\"包装\",IF($BG$11=2,\"バラ\",\"\"))","v":"包装"},{"$f":"IF($BG$24=1,\"製造者\",IF($BG$24=2,\"加工者\",IF($BG$24=3,\"販売者\",IF($BG$24=4,\"輸入者\",\"\"))))","v":"製造者"},{"$f":"IF($F$18=\"\",\"\",$F$18)","v":""},{"$f":"IF($Y$16=\"\",\"\",$Y$16)","v":""},{"$f":"IF($Y$17=\"\",\"\",$Y$17)","v":""},{"$f":"IF($Y$18=\"\",\"\",$Y$18)","v":""},{"$f":"IF($Y$19=\"\",\"\",$Y$19)","v":""},{"$f":"IF($AP$17=\"\",\"\",$AP$17)","v":""},{"$f":"IF($CH$46=1,\"〇\",\"\")","v":"〇"}]
[null,null,null,null,null,null,null,null,null,null,null,null,null,null,null,null,null,null,null,null,null,null,null,null,null,null,null,null,null,null,null,null,null,null,null,null,null,null,null,null,null,null,null,null,null,null,null,null,null,null,null,null,null,null,null,null,null,null,null,null,null,null,null,null,null,null,null,null,null,null,null,null,null,null,null,null,null,null,null,null,null,null,null,null,null,null,null,null,"QC部GM","QC部②","QC部①"]

{"sheet":"表示提出フォーム（推奨）","index":1,"n_rows":32,"n_cols":1,"rows_kept":32,"cut":false,"hidden":false,"merged":[[31,0,31,38],[32,0,55,38],[3,0,29,38],[1,0,1,38],[30,0,30,38],[2,0,2,38]]}
["※添付する画像は、文字、数値が、鮮明に見えるもの（読めるもの）にしてください。"]
["①商品の表示　画像（実際に商品に貼られている一括表示　と　栄養成分表示）"]
["※注意点：\n　・表示が枠に入りきらない場合、別途添付し、提出ください。\n　・詰め合わせ商品について、外箱と個包装それぞれに一括表示がある場合、両方を添付してください。\n　　→どちらかのみに表示がある場合、「個包装表示なし」、「外箱表示なし」等、わかるように、空欄に記載ください。\n　・栄養成分表示の添付について、表示を省略・免除されている商品は除く。（その場合、省略・免除理由も具合的に空欄に記載ください）"]
["　"]
[]
[]
[]
[]
[]
[]
[]
[]
[]
[]
[]
[]
[]
[]
[]
[]
[]
[]
[]
[]
[]
[]
[]
[]
[]
[]
[]
["⓶商品の外観　画像"]

{"sheet":"申請方法","index":2,"n_rows":4,"n_cols":40,"rows_kept":4,"cut":false,"hidden":false,"merged":[[0,26,0,27],[0,28,0,31],[0,32,0,34],[2,0,2,38],[0,2,0,5],[0,0,0,1],[0,6,0,7],[0,8,0,11],[0,12,0,13],[0,35,0,38],[0,14,0,17],[0,18,0,21],[0,22,0,25]]}
["大分類",null,"ルール",null,null,null,"中分類",null,"申請",null,null,null,"小分類",null,"新規申請",null,null,null,"作成・管理",null,null,null,"QC部",null,null,null,"発信日",null,"2017-12-30",null,null,null,"最終更新日",null,null,"2020-06-01",null,null,null,18]
[null,null,null,null,null,null,null,null,null,null,null,null,null,null,null,null,null,null,null,null,null,null,null,null,null,null,null,null,null,null,null,null,null,null,null,null,null,null,null,10]
["新規（包装済み・小分け）商品登録申請の方法について",null,null,null,null,null,null,null,null,null,null,null,null,null,null,null,null,null,null,null,null,null,null,null,null,null,null,null,null,null,null,null,null,null,null,null,null,null,null,35]
[null,null,null,null,null,null,null,null,null,null,null,null,null,null,null,null,null,null,null,null,null,null,null,null,null,null,null,null,null,null,null,null,null,null,null,null,null,null,null,27]

{"sheet":"申請の流れ","index":3,"n_rows":0,"n_cols":0,"rows_kept":0,"cut":false,"hidden":false,"merged":[]}

{"sheet":"エラー一覧","index":4,"n_rows":14,"n_cols":3,"rows_kept":14,"cut":false,"hidden":true,"merged":[[8,0,10,0],[11,0,13,0],[2,0,7,0]]}
["特記事項に自動入力される内容一覧"]
[null,"選択内容","→自動入力内容"]
["Ⅰ.申請商品の内容","惣菜・鮮魚（寿司）で、小分けにチェックを入れた場合","■こちらの申請書は、惣菜・鮮魚（寿司）の小分け商品の申請フォームではありません。『QC部情報（商品部）』から該当のフォームをダウンロードし、提出てください"]
[null,"納品・取扱区分にチェック漏れがある場合","■Ⅰ.申請書の内容の『取扱区分』にチェックはしていますか。"]
[null,"売上納品だが、包装済とばら売りにチェック漏れがある場合","■Ⅰ.申請書の内容の『取扱区分』について、売上納品商品なので「包装済』『バラ売』のどちらかにチェックはしていますか。"]
[null,"保存条件にチェック漏れがある場合","■Ⅰ.申請書の内容の『保存条件』にチェックはしていますか。"]
[null,"温度変更・小分けを選択し、温度変更・小分け後の保存条件にチェックがない場合","■Ⅰ.申請書の内容の『温度変更・小分け後　保存条件』にチェックはしていますか。"]
[null,"「製造者／加工者／販売者／輸入者」にチャックがない場合","■Ⅰ.申請書の内容の「製造者／加工者／販売者／輸入者」にチェックはしていますか。"]
["Ⅱ.申請商品の確認","確認チェック欄に「いいえ」がある場合","■Ⅱ.申請商品の確認チェック欄に『いいえ』があります。取引先様に内容をご確認ください。"]
[null,"賞味期限の根拠にチェック漏れがある場合","■Ⅱ.申請商品の確認の④『賞味期限の根拠』にチェックはしていますか。"]
[null,"確認チェック欄にチェック漏れがある場合","■Ⅱ.取引先様記入欄にチェック漏れはありませんか。"]
["Ⅲ.商品部記入欄","商品部記入欄にチェック漏れがある場合","■Ⅲ.商品部記入欄にチェック漏れはありませんか。"]
[null,"新規取引先であるが「はい」の場合","■Ⅲ.商品部記入欄の①『新規の取引先である』が『はい』になっていますので、『工場管理体制確認表』又は仕入先で持っている同等の帳票を提出して下さい。"]
[null,"工場確認体制が「いいえ」の場合","■Ⅲ.商品部記入欄の⓶工場確認体制が『いいえ』となっております。確認の上、提出ください。"]

{"sheet":"Sheet1","index":5,"n_rows":2,"n_cols":7,"rows_kept":2,"cut":false,"hidden":true,"merged":[[2,1,5,1],[2,2,5,2],[2,4,5,4],[2,5,5,5],[2,6,5,6]]}
[]
[null,"上長印","担当ＭＤ",null,"ＱＣ部ＧＭ","ＱＣ部②","ＱＣ部①"]